fUST/lending_fUST_20240122
["ID","MTS","AMOUNT","RATE_DAILY","PERIOD"]
[312512629,1705937444833,-500.0,0.00027699,2]
[312512630,1705937444843,-500.0,0.00027699,2]
[312512631,1705937444852,-429.3282019,0.00027699,2]
[312512632,1705937444861,-500.0,0.00027699,2]
[312512633,1705937444870,-500.0,0.00027699,2]
[312512634,1705937444879,-500.0,0.00027699,2]
[312512635,1705937444889,-500.0,0.00027699,2]
[312512636,1705937444898,-500.0,0.00027699,2]
[312512637,1705937444908,-500.0,0.00027699,2]
[312512638,1705937444916,-500.0,0.00027699,2]
[312512639,1705937444926,-500.0,0.00027699,2]
[312512640,1705937444934,-500.0,0.00027699,2]
[312512641,1705937444943,-500.0,0.00027699,2]
[312512642,1705937444953,-610.08359044,0.00027699,2]
[312512643,1705937444962,-500.0,0.00027699,2]
[312512644,1705937444971,-500.0,0.00027699,2]
[312512645,1705937444980,-500.0,0.00027699,2]
[312512646,1705937444989,-500.0,0.00027699,2]
[312512647,1705937445006,-500.0,0.00027699,2]
[312512648,1705937445015,-500.0,0.00027699,2]
[312512649,1705937445025,-500.0,0.00027699,2]
[312512650,1705937445036,-500.0,0.00027699,2]
[312512651,1705937445046,-500.0,0.00027699,2]
[312512652,1705937445055,-500.0,0.00027699,2]
[312512653,1705937445065,-344.14259827,0.00027699,2]
[312512654,1705937445074,-500.0,0.00027699,2]
[312512655,1705937445083,-500.0,0.00027699,2]
[312512656,1705937445094,-500.0,0.00027699,2]
[312512657,1705937445104,-500.0,0.00027699,2]
[312512658,1705937445114,-500.0,0.00027699,2]
[312512659,1705937445124,-500.0,0.00027699,2]
[312512660,1705937445134,-500.0,0.00027699,2]
[312512661,1705937445146,-500.0,0.00027699,2]
[312512662,1705937445156,-500.0,0.00027699,2]
[312512663,1705937445167,-500.0,0.00027699,2]
[312512664,1705937445177,-216.10868806,0.00027699,2]
[312512665,1705937445186,-265.12568027,0.00027699,2]
[312512666,1705937445195,-500.0,0.00027699,2]
[312512667,1705937445205,-500.0,0.00027699,2]
[312512668,1705937445215,-500.0,0.00027699,2]
[312512669,1705937445225,-500.0,0.00027699,2]
[312512670,1705937445235,-500.0,0.00027699,2]
[312512671,1705937445244,-500.0,0.00027699,2]
[312512672,1705937445253,-500.0,0.00027699,2]
[312512673,1705937445262,-500.0,0.00027699,2]
[312512674,1705937445271,-500.0,0.00027699,2]
[312512675,1705937445280,-500.0,0.00027699,2]
[312512676,1705937445289,-500.0,0.00027699,2]
[312512677,1705937445298,-500.0,0.00027699,2]
[312512678,1705937445308,-474.91621314,0.00027699,2]
[312512679,1705937445317,-500.0,0.00027699,2]
[312512680,1705937445326,-500.0,0.00027699,2]
[312512681,1705937445442,-500.0,0.00027699,2]
[312512682,1705937445451,-500.0,0.00027699,2]
[312512683,1705937445461,-500.0,0.00027699,2]
[312512684,1705937445470,-500.0,0.00027699,2]
[312512685,1705937445479,-500.0,0.00027699,2]
[312512686,1705937445489,-216.56384326,0.00027699,2]
[312512687,1705937445498,-500.0,0.00027699,2]
[312512688,1705937445507,-500.0,0.00027699,2]
[312512689,1705937445517,-500.0,0.00027699,2]
[312512690,1705937445526,-276000.0,0.000277,2]
[312512691,1705937445535,-9121.34550853,0.0002775,4]
[312512692,1705937445545,-575.231722,0.00027789,2]
[312512693,1705937445555,-1000.0,0.00027799,14]
[312512694,1705937445564,-1000.0,0.00027799,14]
[312512695,1705937445573,-421.46347451,0.00027799,14]
[312512696,1705937445583,-500.0,0.00027808,2]
[312512697,1705937445592,-500.0,0.00027945,2]
[312512698,1705937445602,-190.7413264,0.00027998,2]
[312512699,1705937445612,-186.53501078,0.00027998,2]
[312512700,1705937445621,-243.60471199,0.00027998,2]
[312512701,1705937445631,-178.76422807,0.00027999,2]
[312512702,1705937445642,-154.95351395,0.00028,7]
[312512703,1705937445651,-155.66697436,0.00028,2]
[312512704,1705937445661,-177.14198927,0.00028,2]
[312512705,1705937445670,-500.0,0.00028082,2]
[312512706,1705937445680,-500.0,0.00028219,2]
[312512707,1705937445689,-647.13578975,0.00028284,2]
[312512709,1705937445698,-500.0,0.00028356,2]
[312512710,1705937445708,-4011.1198485,0.00028476,2]
[312512711,1705937445717,-500.0,0.00028493,2]
[312512712,1705937445726,-575.231722,0.00028571,2]
[312512713,1705937445735,-500.0,0.0002863,2]
[312512714,1705937445745,-38616.90105308,0.00028699,2]
[312512715,1705937445754,-12720.32350353,0.00028749,2]
[312512716,1705937445763,-155.0,0.00028767,2]
[312512717,1705937445773,-500.0,0.00028767,2]
[312512718,1705937445782,-2953.54,0.00028798,2]
[312512719,1705937445791,-2953.54,0.00028798,2]
[312512720,1705937445800,-2953.54,0.00028798,2]
[312512721,1705937445809,-2953.54,0.00028798,2]
[312512722,1705937445818,-2953.54,0.00028798,2]
[312512723,1705937445828,-2953.54,0.00028798,2]
[312512724,1705937445838,-2953.54,0.00028798,2]
[312512725,1705937445847,-2953.54,0.00028798,2]
[312512726,1705937445856,-2953.54,0.00028798,2]
[312512727,1705937445865,-2953.54,0.00028798,2]
[312512728,1705937445874,-353086.15324556,0.000288,2]
[312512729,1705937445884,-450.0,0.000288,2]
[312512730,1705937445893,-450.0,0.000288,2]
[312512731,1705937445901,-50000.0,0.00028855,5]
[312512732,1705937445910,-154.95351395,0.00028855,2]
[312512733,1705937445919,-5000.0,0.00028865,5]
[312512734,1705937445928,-19713.63292512,0.00028865,5]
[312512735,1705937445937,-5000.0,0.00028865,5]
[312512736,1705937445946,-490.9394081,0.00028865,2]
[312512737,1705937445955,-1703.12375928,0.00028865,3]
[312512738,1705937445964,-15345.20093222,0.00028884,5]
[312512739,1705937445979,-2143.62917911,0.00028884,5]
[312512740,1705937445988,-8059.22034377,0.00028904,5]
[312512741,1705937446003,-3862.12517672,0.00028904,5]
[312512742,1705937446075,-1658.26826501,0.00028904,5]
[312512743,1705937446086,-406.09592519,0.00028904,5]
[312512744,1705937446098,-5392.19800511,0.00028904,5]
[312512745,1705937446109,-500.0,0.00028999,4]
[312512746,1705937446118,-500.0,0.00028999,4]
[312512747,1705937446127,-500.0,0.00028999,4]
[312512748,1705937446138,-500.0,0.00028999,4]
[312512749,1705937446147,-500.0,0.00028999,4]
[312512750,1705937446156,-500.0,0.00028999,4]
[312512751,1705937446165,-500.0,0.00028999,4]
[312512752,1705937446174,-500.0,0.00028999,4]
[312512753,1705937446183,-419.06436647,0.00028999,4]
[312512754,1705937446192,-500.0,0.00028999,4]
[312512755,1705937446201,-500.0,0.00028999,4]
[312512756,1705937446210,-273.71484549,0.00028999,4]
[312512757,1705937446219,-500.0,0.00028999,4]
[312512758,1705937446229,-500.0,0.00028999,4]
[312512759,1705937446238,-438.17612016,0.00028999,4]
[312512760,1705937446247,-298.85931341,0.00028999,4]
[312512801,1705937447560,-0.84471856,5.419e-05,2]
[312512802,1705937447670,-8761.13931476,5.419e-05,2]
[312512803,1705937447679,-1068.3905529,5.479e-05,2]
[312512804,1705937447689,-1992.87766821,0.00023999,2]
[312512805,1705937447699,-201.14068659,0.00028999,4]
[312512806,1705937447709,-500.0,0.00028999,4]
[312512807,1705937447718,-500.0,0.00028999,4]
[312512808,1705937447728,-500.0,0.00028999,4]
[312512809,1705937447737,-500.0,0.00028999,4]
[312512810,1705937447747,-500.0,0.00028999,4]
[312512811,1705937447756,-500.0,0.00028999,4]
[312512812,1705937447766,-500.0,0.00028999,4]
[312512813,1705937447775,-500.0,0.00028999,4]
[312512814,1705937447785,-500.0,0.00028999,4]
[312512815,1705937447795,-500.0,0.00028999,4]
[312512816,1705937447804,-500.0,0.00028999,4]
[312512817,1705937447814,-500.0,0.00028999,4]
[312512818,1705937447823,-500.0,0.00028999,4]
[312512819,1705937447833,-500.0,0.00028999,4]
[312512820,1705937447842,-500.0,0.00028999,4]
[312512821,1705937447852,-637.16320904,0.00028999,4]
[312512822,1705937447861,-500.0,0.00028999,4]
[312512823,1705937447871,-500.0,0.00028999,4]
[312512824,1705937447881,-500.0,0.00028999,4]
[312512825,1705937447892,-500.0,0.00028999,4]
[312512826,1705937447902,-500.0,0.00028999,4]
[312512827,1705937447913,-557.21003532,0.00028999,4]
[312512828,1705937447923,-500.0,0.00028999,4]
[312512829,1705937447933,-322.63111095,0.00028999,4]
[312512830,1705937447942,-500.0,0.00028999,4]
[312512831,1705937447951,-500.0,0.00028999,4]
[312512832,1705937447961,-500.0,0.00028999,4]
[312512833,1705937447971,-500.0,0.00028999,4]
[312512834,1705937447980,-500.0,0.00028999,4]
[312512835,1705937447989,-1880.79357717,0.00029,2]
[312512836,1705937448000,-275.37446149,0.00029,10]
[312512837,1705937448009,-155.17008071,0.00029,2]
[312512838,1705937448019,-150.0,0.00029,2]
[312512839,1705937448030,-674.68602461,0.00029,23]
[312512840,1705937448039,-155.0,0.00029,2]
[312512841,1705937448049,-1276.16598908,0.00029,2]
[312512842,1705937448059,-300.0,0.00029,2]
[312512843,1705937448069,-343.09681091,0.00029,2]
[312512844,1705937448081,-763.99864371,0.00029,2]
[312512845,1705937448090,-261.58936724,0.00029,2]
[312512846,1705937448100,-89456.35107539,0.00029,7]
[312512847,1705937450240,196.88588059,5e-05,2]
[312512848,1705937456942,537.44070193,4.503e-05,2]
[312512849,1705937458630,172.23474005,5e-05,2]
[312512850,1705937473800,826.21426612,5e-05,2]
[312512851,1705937475850,155.92739932,5e-05,2]
[312512852,1705937498098,228.74041774,5e-05,2]
[312512854,1705937513781,155.08522418,5e-05,2]
[312512855,1705937514382,182.7245571,5e-05,2]
[312512856,1705937560478,-320.89748266,5.478e-05,2]
[312512857,1705937560499,-155.10251734,5.478e-05,2]
[312512858,1705937576505,1093.21433764,5e-05,2]
[312512859,1705937579893,226.1052957,5e-05,2]
[312512860,1705937630988,154.98450155,5e-05,2]
[312512861,1705937644983,234.75785515,5e-05,2]
[312512864,1705937743806,214.43562785,5e-05,2]
[312512865,1705937800132,202.3142506,5e-05,2]
[312512880,1705938111106,-1000.0,0.00031,31]
[312512881,1705938111134,-1000.0,0.00032,32]
[312512882,1705938111172,-1000.0,0.00033,33]
[312512883,1705938111195,-1000.0,0.00033,33]
[312512884,1705938111223,-1207.87921208,0.00033215,30]
[312512885,1705938111249,-1000.0,0.00034,34]
[312512886,1705938111279,-1000.0,0.00035,35]
[312512887,1705938111305,-1000.0,0.00035,35]
[312512888,1705938111332,-348.140272,0.00035616,120]
[312512889,1705938111356,-1000.0,0.00036,36]
[312512890,1705938111381,-1000.0,0.00037,37]
[312512891,1705938111408,-1000.0,0.00037,37]
[312512892,1705938111432,-1000.0,0.00038,38]
[312512893,1705938111458,-245.30368558,0.00039,30]
[312512894,1705938111482,-1000.0,0.00039,39]
[312512895,1705938111506,-1000.0,0.00039,39]
[312512896,1705938111534,-160.23316055,0.0004,120]
[312512897,1705938111557,-1244.33583134,0.0004,30]
[312512898,1705938111581,-994.26761857,0.0004,60]
[312512899,1705938111605,-150.0,0.0004,30]
[312512900,1705938111629,-1000.0,0.0004,40]
[312512901,1705938111658,-600.0,0.0004,30]
[312512902,1705938111681,-447.60588291,0.00040019,30]
[312512903,1705938111706,-162.52459058,0.00040038,30]
[312512904,1705938111730,-151.61898176,0.00040045,30]
[312512905,1705938111753,-447.60588291,0.00040047,30]
[312512906,1705938111777,-447.60588291,0.00040068,30]
[312512907,1705938111800,-150.98638473,0.00040096,30]
[312512908,1705938111824,-447.60588291,0.00040111,30]
[312512909,1705938111848,-150.98638473,0.00040163,30]
[312512910,1705938111874,-447.60588291,0.00040181,30]
[312512911,1705938111898,-150.0,0.000402,30]
[312512912,1705938111922,-150.0897737,0.00040213,30]
[312512913,1705938111947,-2415.75842416,0.00040232,120]
[312512914,1705938111972,-162.52459058,0.00040297,30]
[312512915,1705938111997,-1000.0,0.000403,30]
[312512916,1705938112021,-166.88297361,0.00040303,30]
[312512917,1705938112047,-150.0897737,0.00040354,30]
[312512918,1705938112072,-154.8781239,0.00040359,30]
[312512919,1705938112098,-447.60588291,0.00040376,30]
[312512920,1705938112123,-150.0,0.000404,30]
[312512921,1705938112150,-162.52459061,0.00040464,30]
[312512922,1705938112335,-150.0897737,0.00040492,30]
[312512923,1705938112361,-166.88297361,0.00040502,30]
[312512924,1705938112385,-150.98638473,0.00040513,30]
[312512925,1705938112411,-447.60588291,0.00040524,30]
[312512926,1705938112434,-150.98638473,0.00040578,30]
[312512927,1705938112458,-447.60588291,0.00040584,30]
[312512928,1705938112481,-150.0,0.000406,30]
[312512929,1705938112505,-150.98638473,0.00040601,30]
[312512930,1705938112528,-447.60588291,0.00040621,30]
[312512931,1705938112551,-447.60588291,0.00040628,30]
[312512932,1705938112575,-447.60588291,0.00040643,30]
[312512933,1705938112598,-150.98638473,0.00040666,30]
[312512934,1705938112622,-447.60588291,0.00040683,30]
[312512935,1705938112645,-150.98638473,0.00040739,30]
[312512936,1705938112668,-447.60588291,0.00040762,30]
[312512937,1705938112692,-447.60588291,0.00040781,30]
[312512938,1705938112716,-150.0,0.000408,30]
[312512939,1705938112741,-214.54,0.000408,40]
[312512940,1705938112765,-150.98638473,0.00040876,30]
[312512941,1705938112789,-713.71807429,0.00040899,30]
[312512942,1705938112812,-155.73799969,0.0004092,30]
[312512943,1705938112835,-150.0897737,0.00040985,30]
[312512944,1705938112859,-150.0,0.00041,30]
[312512945,1705938112882,-235.27333687,0.00041,90]
[312512946,1705938112909,-1000.0,0.00041,41]
[312512947,1705938112934,-1000.0,0.00041,41]
[312512948,1705938112957,-375.83615278,0.00041,30]
[312512949,1705938112980,-67020.75694976,0.00041,30]
[312512950,1705938113006,-600.0,0.00041014,30]
[312512951,1705938113028,-150.98638474,0.00041033,30]
[312512952,1705938113053,-447.60588309,0.00041038,30]
[312512953,1705938113076,-529.18,0.00041095,31]
[312512954,1705938113099,-500.0,0.00041095,31]
[312512955,1705938113123,-1114.81,0.00041095,31]
[312512956,1705938113147,-500.0,0.00041095,31]
[312512957,1705938113170,-501.40920618,0.00041095,31]
[312512958,1705938113194,-243.36415622,0.00041095,31]
[312512959,1705938113221,-500.0,0.00041095,31]
[312512960,1705938113245,-423.11632197,0.00041095,31]
[312512961,1705938113268,-494.17995334,0.00041095,31]
[312512962,1705938113291,-768.35,0.00041095,31]
[312512963,1705938113314,-500.0,0.00041095,31]
[312512964,1705938113336,-500.0,0.00041095,31]
[312512965,1705938113360,-500.0,0.00041095,31]
[312512966,1705938113383,-504.53791537,0.00041095,31]
[312512967,1705938113409,-503.99545693,0.00041095,31]
[312512968,1705938113431,-873.08,0.00041095,31]
[312512969,1705938113454,-501.77657072,0.00041095,31]
[312512970,1705938113477,-500.0,0.00041095,31]
[312512971,1705938113500,-500.0,0.00041095,31]
[312512972,1705938113524,-500.0,0.00041095,31]
[312512973,1705938113549,-505.35438239,0.00041095,31]
[312512974,1705938113572,-501.63447845,0.00041095,31]
[312512975,1705938113596,-801.83,0.00041095,31]
[312512976,1705938113623,-500.0,0.00041095,31]
[312512977,1705938113647,-500.0,0.00041095,31]
[312512978,1705938113669,-226.0,0.00041095,31]
[312512979,1705938113692,-500.0,0.00041095,31]
[312512980,1705938113715,-596.94099766,0.00041095,31]
[312512981,1705938113738,-500.0,0.00041095,31]
[312512982,1705938113763,-500.0,0.00041095,31]
[312512983,1705938113787,-597.14788468,0.00041095,31]
[312512984,1705938113810,-500.0,0.00041095,31]
[312512985,1705938113834,-500.0,0.00041095,31]
[312512986,1705938113857,-290.0582979,0.00041095,31]
[312512987,1705938113882,-500.0,0.00041095,31]
[312512988,1705938113908,-500.0,0.00041095,31]
[312512989,1705938113932,-500.0,0.00041095,31]
[312512990,1705938113956,-500.0,0.00041095,31]
[312512991,1705938113981,-503.79441784,0.00041095,31]
[312512992,1705938114004,-500.0,0.00041095,31]
[312512993,1705938114028,-500.0,0.00041095,31]
[312512994,1705938114052,-500.0,0.00041095,31]
[312512995,1705938114075,-500.0,0.00041095,31]
[312512996,1705938114098,-500.0,0.00041095,31]
[312512997,1705938114121,-500.0,0.00041095,31]
[312512998,1705938114145,-500.0,0.00041095,31]
[312512999,1705938114168,-502.62422525,0.00041095,31]
[312513000,1705938114191,-500.0,0.00041095,31]
[312513001,1705938114221,-500.0,0.00041095,31]
[312513002,1705938114246,-500.0,0.00041095,31]
[312513003,1705938114270,-500.0,0.00041095,31]
[312513004,1705938114295,-501.18123835,0.00041095,31]
[312513005,1705938114319,-500.0,0.00041095,31]
[312513006,1705938114343,-504.50848364,0.00041095,31]
[312513007,1705938114366,-500.0,0.00041095,31]
[312513008,1705938114391,-500.0,0.00041095,31]
[312513009,1705938114414,-500.0,0.00041095,31]
[312513010,1705938114438,-741.59,0.00041095,31]
[312513011,1705938114461,-500.0,0.00041095,31]
[312513012,1705938114484,-500.0,0.00041095,31]
[312513013,1705938114509,-500.0,0.00041095,31]
[312513014,1705938114655,-500.0,0.00041095,31]
[312513015,1705938114680,-500.0,0.00041095,31]
[312513016,1705938114705,-500.0,0.00041095,31]
[312513017,1705938114729,-464.15747196,0.00041095,31]
[312513018,1705938114752,-564.89,0.00041095,31]
[312513019,1705938114776,-500.0,0.00041095,31]
[312513020,1705938114799,-502.50573028,0.00041095,31]
[312513021,1705938114823,-500.0,0.00041095,31]
[312513022,1705938114846,-1047.38,0.00041095,31]
[312513023,1705938114869,-500.0,0.00041095,31]
[312513024,1705938114895,-297.79732766,0.00041095,31]
[312513025,1705938114918,-493.88270056,0.00041095,31]
[312513026,1705938114941,-501.98682253,0.00041095,31]
[312513027,1705938114966,-463.16600935,0.00041095,31]
[312513028,1705938114991,-500.0,0.00041095,31]
[312513029,1705938115014,-504.68488454,0.00041095,31]
[312513030,1705938115037,-500.0,0.00041095,31]
[312513031,1705938115061,-500.0,0.00041095,31]
[312513032,1705938115084,-500.0,0.00041095,31]
[312513033,1705938115108,-500.0,0.00041095,31]
[312513034,1705938115130,-500.0,0.00041095,31]
[312513035,1705938115156,-500.0,0.00041095,31]
[312513036,1705938115179,-500.0,0.00041095,31]
[312513037,1705938115206,-500.0,0.00041095,31]
[312513038,1705938115230,-510.32293522,0.00041095,31]
[312513039,1705938115254,-571.3,0.00041095,31]
[312513040,1705938115277,-500.0,0.00041095,31]
[312513041,1705938115302,-497.91391953,0.00041095,31]
[312513042,1705938115326,-501.18989366,0.00041095,31]
[312513043,1705938115353,-500.0,0.00041095,31]
[312513044,1705938115377,-1774.13,0.00041095,31]
[312513045,1705938115402,-500.0,0.00041095,31]
[312513046,1705938115425,-501.93585568,0.00041095,31]
[312513047,1705938115449,-500.0,0.00041095,31]
[312513048,1705938115472,-581.8725791,0.00041095,31]
[312513049,1705938115497,-500.0,0.00041095,31]
[312513050,1705938115522,-500.0,0.00041095,31]
[312513051,1705938115546,-604.97,0.00041095,31]
[312513052,1705938115569,-500.0,0.00041095,31]
[312513053,1705938115593,-501.05837074,0.00041095,31]
[312513054,1705938115617,-500.0,0.00041095,31]
[312513055,1705938115642,-500.0,0.00041095,31]
[312513056,1705938115666,-500.0,0.00041095,31]
[312513057,1705938115690,-500.0,0.00041095,31]
[312513058,1705938115715,-508.76926993,0.00041095,31]
[312513059,1705938115739,-500.0,0.00041095,31]
[312513060,1705938115762,-500.0,0.00041095,31]
[312513061,1705938115787,-500.0,0.00041095,31]
[312513062,1705938115822,-500.0,0.00041095,31]
[312513063,1705938115854,-500.0,0.00041095,31]
[312513064,1705938115883,-502.03435107,0.00041095,31]
[312513065,1705938115914,-200.0,0.00041095,31]
[312513066,1705938115945,-500.0,0.00041095,31]
[312513067,1705938115974,-500.0,0.00041095,31]
[312513068,1705938116003,-500.0,0.00041095,31]
[312513069,1705938116032,-500.0,0.00041095,31]
[312513070,1705938116061,-453.44015408,0.00041095,31]
[312513071,1705938116092,-500.0,0.00041095,31]
[312513072,1705938116118,-500.0,0.00041095,31]
[312513073,1705938116149,-500.0,0.00041095,31]
[312513074,1705938116178,-500.0,0.00041095,31]
[312513075,1705938116209,-500.0,0.00041095,31]
[312513076,1705938116244,-500.0,0.00041095,31]
[312513077,1705938116275,-500.0,0.00041095,31]
[312513078,1705938116305,-500.0,0.00041095,31]
[312513079,1705938116331,-500.89280866,0.00041095,31]
[312513080,1705938116359,-500.0,0.00041095,31]
[312513081,1705938116388,-1340.33,0.00041095,31]
[312513082,1705938116418,-500.0,0.00041095,31]
[312513083,1705938116445,-503.92517647,0.00041095,31]
[312513084,1705938116472,-500.0,0.00041095,31]
[312513085,1705938116499,-500.0,0.00041095,31]
[312513086,1705938116527,-500.0,0.00041095,31]
[312513087,1705938116557,-640.07,0.00041095,31]
[312513088,1705938116586,-326.53772695,0.00041095,31]
[312513089,1705938116615,-500.0,0.00041095,31]
[312513090,1705938116644,-1825.15,0.00041095,31]
[312513091,1705938116672,-500.0,0.00041095,31]
[312513092,1705938116698,-150.0,0.00041095,31]
[312513093,1705938116726,-1380.22,0.00041095,31]
[312513094,1705938116754,-503.06191504,0.00041095,31]
[312513095,1705938116782,-500.0,0.00041095,31]
[312513096,1705938116810,-567.11,0.00041095,31]
[312513097,1705938116839,-500.0,0.00041095,31]
[312513098,1705938116867,-500.0,0.00041095,31]
[312513099,1705938116896,-502.03211732,0.00041095,31]
[312513100,1705938116923,-500.0,0.00041095,31]
[312513101,1705938116951,-503.11213762,0.00041095,31]
[312513102,1705938116979,-556.47,0.00041095,31]
[312513103,1705938117005,-500.0,0.00041095,31]
[312513104,1705938117034,-500.0,0.00041095,31]
[312513105,1705938117063,-504.41821264,0.00041095,31]
[312513106,1705938117091,-1337.29,0.00041095,31]
[312513107,1705938117259,-500.0,0.00041095,31]
[312513108,1705938117291,-500.0,0.00041095,31]
[312513109,1705938117316,-500.0,0.00041095,31]
[312513110,1705938117339,-1443.88,0.00041095,31]
[312513111,1705938117363,-500.0,0.00041095,31]
[312513112,1705938117386,-500.0,0.00041095,31]
[312513113,1705938117411,-500.0,0.00041095,31]
[312513114,1705938117435,-502.968745,0.00041095,31]
[312513115,1705938117459,-1289.28,0.00041095,31]
[312513116,1705938117482,-500.0,0.00041095,31]
[312513117,1705938117506,-503.31657388,0.00041095,31]
[312513118,1705938117530,-638.47,0.00041095,31]
[312513119,1705938117553,-500.0,0.00041095,31]
[312513120,1705938117578,-504.03088729,0.00041095,31]
[312513121,1705938117602,-503.962728,0.00041095,31]
[312513122,1705938117626,-500.0,0.00041095,31]
[312513123,1705938117653,-503.25238646,0.00041095,31]
[312513124,1705938117677,-502.20183492,0.00041095,31]
[312513125,1705938117701,-500.0,0.00041095,31]
[312513126,1705938117725,-955.22214344,0.00041095,31]
[312513127,1705938132354,-245.30368558,0.00039,30]
[312513128,1705938132386,-777.49785656,0.00041095,31]
[312513129,1705938132409,-502.67830291,0.00041095,31]
[312513130,1705938132433,-500.0,0.00041095,31]
[312513131,1705938132459,-829.19,0.00041095,31]
[312513132,1705938132484,-500.0,0.00041095,31]
[312513133,1705938132510,-500.0,0.00041095,31]
[312513134,1705938132534,-2040.77,0.00041095,31]
[312513135,1705938132558,-505.65976221,0.00041095,31]
[312513136,1705938132582,-502.36758433,0.00041095,31]
[312513137,1705938132607,-501.18089107,0.00041095,31]
[312513138,1705938132631,-500.0,0.00041095,31]
[312513139,1705938132656,-500.0,0.00041095,31]
[312513140,1705938132680,-500.0,0.00041095,31]
[312513141,1705938132705,-2018.02,0.00041095,31]
[312513142,1705938132730,-511.82406535,0.00041095,31]
[312513143,1705938132754,-507.4500376,0.00041095,31]
[312513144,1705938132779,-502.48143469,0.00041095,31]
[312513145,1705938132804,-502.07001464,0.00041095,31]
[312513146,1705938132833,-1114.79,0.00041095,31]
[312513147,1705938132858,-500.0,0.00041095,31]
[312513148,1705938132882,-458.52586913,0.00041095,31]
[312513149,1705938133029,-1126.09,0.00041095,31]
[312513150,1705938133055,-500.0,0.00041095,31]
[312513151,1705938133079,-500.0,0.00041095,31]
[312513152,1705938133103,-500.0,0.00041095,31]
[312513153,1705938133128,-1962.09,0.00041095,31]
[312513154,1705938133154,-520.05303069,0.00041095,31]
[312513155,1705938133179,-949.36,0.00041095,31]
[312513156,1705938133203,-505.46110484,0.00041095,31]
[312513157,1705938133231,-500.0,0.00041095,31]
[312513158,1705938133255,-501.89828724,0.00041095,31]
[312513159,1705938133280,-702.06,0.00041095,31]
[312513160,1705938133305,-702.06,0.00041095,31]
[312513161,1705938133329,-702.06,0.00041095,31]
[312513162,1705938133354,-702.06,0.00041095,31]
[312513163,1705938133378,-702.06,0.00041095,31]
[312513164,1705938133403,-702.06,0.00041095,31]
[312513165,1705938133426,-702.06,0.00041095,31]
[312513166,1705938133449,-702.06,0.00041095,31]
[312513167,1705938133473,-500.0,0.00041095,30]
[312513168,1705938133497,-522.79162472,0.00041095,31]
[312513169,1705938133520,-702.06,0.00041095,31]
[312513170,1705938133543,-500.0,0.00041095,30]
[312513171,1705938133567,-702.06,0.00041095,31]
[312513172,1705938133591,-500.0,0.00041095,30]
[312513173,1705938133615,-500.0,0.00041095,31]
[312513174,1705938133639,-702.06,0.00041095,31]
[312513175,1705938133665,-500.0,0.00041095,30]
[312513176,1705938133688,-347.71074427,0.00041095,30]
[312513177,1705938133712,-702.06,0.00041095,31]
[312513178,1705938133735,-702.06,0.00041095,31]
[312513179,1705938133758,-702.06,0.00041095,31]
[312513180,1705938133782,-2181.3,0.00041095,31]
[312513181,1705938133806,-702.06,0.00041095,31]
[312513182,1705938133830,-702.06,0.00041095,31]
[312513183,1705938133853,-702.06,0.00041095,31]
[312513184,1705938133877,-702.06,0.00041095,31]
[312513185,1705938133902,-702.06,0.00041095,31]
[312513186,1705938133927,-702.06,0.00041095,31]